[Event "Titled Tuesday Blitz October 26 2021"]
[White "Kislov, Oleg"]
[Black "Savchenko, Boris"]
[WhiteFideId "13503774"]
[BlackFideId "4147332"]
[WhiteElo "2252"]
[BlackElo "2526"]
[Result "1/2-1/2"]
[Round "02"]
[TimeControl "180+1"]
[Date "2021.10.26"]
[WhiteClock "0:00:03"]
[BlackClock "0:00:18"]

1. d4 {[%clk 0:03:00]}  Nf6 {[%clk 0:02:59]} 2. Nc3 {[%clk 0:03:00]}  d5 {[%clk 0:02:58]} 3. Bg5 {[%clk 0:02:59]}  c6 {[%clk 0:02:47]} 4. Qd3 {[%clk 0:02:48]}  b5 {[%clk 0:02:45]} 5. a3 {[%clk 0:02:46]}  Nbd7 {[%clk 0:02:20]} 6. e4 {[%clk 0:02:41]}  e6 {[%clk 0:02:10]} 7. e5 {[%clk 0:02:32]}  h6 {[%clk 0:02:10]} 8. Qh3 {[%clk 0:02:31]}  Rg8 {[%clk 0:01:56]} 9. Be3 {[%clk 0:01:53]}  Ne4 {[%clk 0:01:56]} 10. Nxe4 {[%clk 0:01:51]}  dxe4 {[%clk 0:01:57]} 11. Qg4 {[%clk 0:01:46]}  f5 {[%clk 0:01:42]} 12. Qg6+ {[%clk 0:01:30]}  Ke7 {[%clk 0:01:41]} 13. Bxh6 {[%clk 0:01:27]}  gxh6 {[%clk 0:01:25]} 14. Qxg8 {[%clk 0:01:27]}  Qe8 {[%clk 0:01:22]} 15. Nh3 {[%clk 0:01:18]}  Qf7 {[%clk 0:01:16]} 16. Qxf7+ {[%clk 0:01:15]}  Kxf7 {[%clk 0:01:16]} 17. Nf4 {[%clk 0:01:15]}  Nb6 {[%clk 0:01:17]} 18. b3 {[%clk 0:01:13]}  a5 {[%clk 0:01:16]} 19. Be2 {[%clk 0:01:12]}  Bd7 {[%clk 0:01:11]} 20. f3 {[%clk 0:01:08]}  exf3 {[%clk 0:01:08]} 21. Bxf3 {[%clk 0:01:07]}  Rc8 {[%clk 0:00:57]} 22. O-O {[%clk 0:01:01]}  c5 {[%clk 0:00:56]} 23. d5 {[%clk 0:01:02]}  c4 {[%clk 0:00:56]} 24. dxe6+ {[%clk 0:00:30]}  Bxe6 {[%clk 0:00:57]} 25. Bh5+ {[%clk 0:00:30]}  Ke7 {[%clk 0:00:57]} 26. Rad1 {[%clk 0:00:22]}  cxb3 {[%clk 0:00:47]} 27. Ng6+ {[%clk 0:00:20]}  Ke8 {[%clk 0:00:47]} 28. Nf4+ {[%clk 0:00:18]}  Bf7 {[%clk 0:00:47]} 29. Bxf7+ {[%clk 0:00:17]}  Kxf7 {[%clk 0:00:48]} 30. cxb3 {[%clk 0:00:17]}  Bxa3 {[%clk 0:00:48]} 31. e6+ {[%clk 0:00:18]}  Kf6 {[%clk 0:00:48]} 32. Nd5+ {[%clk 0:00:16]}  Kxe6 {[%clk 0:00:47]} 33. Nxb6 {[%clk 0:00:15]}  Bc5+ {[%clk 0:00:47]} 34. Kh1 {[%clk 0:00:15]}  Bxb6 {[%clk 0:00:48]} 35. Rfe1+ {[%clk 0:00:15]}  Kf7 {[%clk 0:00:47]} 36. Rd7+ {[%clk 0:00:15]}  Kg8 {[%clk 0:00:46]} 37. Rd5 {[%clk 0:00:13]}  b4 {[%clk 0:00:37]} 38. Rxf5 {[%clk 0:00:13]}  Rc3 {[%clk 0:00:37]} 39. Rf3 {[%clk 0:00:12]}  Rc2 {[%clk 0:00:31]} 40. Re8+ {[%clk 0:00:12]}  Kg7 {[%clk 0:00:31]} 41. Re7+ {[%clk 0:00:12]}  Kg6 {[%clk 0:00:30]} 42. h4 {[%clk 0:00:10]}  Bd8 {[%clk 0:00:28]} 43. Re6+ {[%clk 0:00:09]}  Kg7 {[%clk 0:00:28]} 44. Re4 {[%clk 0:00:06]}  Bc7 {[%clk 0:00:25]} 45. Rg4+ {[%clk 0:00:06]}  Kh7 {[%clk 0:00:25]} 46. Rf7+ {[%clk 0:00:05]}  Kh8 {[%clk 0:00:25]} 47. g3 {[%clk 0:00:04]}  a4 {[%clk 0:00:23]} 48. bxa4 {[%clk 0:00:04]}  b3 {[%clk 0:00:23]} 49. Rf8+ {[%clk 0:00:04]}  Kh7 {[%clk 0:00:23]} 50. Rf7+ {[%clk 0:00:05]}  Kh8 {[%clk 0:00:24]} 51. Rb4 {[%clk 0:00:05]}  b2 {[%clk 0:00:23]} 52. Rxc7 {[%clk 0:00:04]}  Rxc7 {[%clk 0:00:21]} 53. Rxb2 {[%clk 0:00:04]}  Rc3 {[%clk 0:00:21]} 54. Kg2 {[%clk 0:00:04]}  Ra3 {[%clk 0:00:21]} 55. Rb4 {[%clk 0:00:05]}  Kg7 {[%clk 0:00:17]} 56. Kh3 {[%clk 0:00:05]}  h5 {[%clk 0:00:17]} 57. Rb5 {[%clk 0:00:05]}  Kg6 {[%clk 0:00:17]} 58. Rg5+ {[%clk 0:00:05]}  Kh6 {[%clk 0:00:17]} 59. a5 {[%clk 0:00:06]}  Ra2 {[%clk 0:00:17]} 60. Rb5 {[%clk 0:00:06]}  Kg6 {[%clk 0:00:18]} 61. Rb6+ {[%clk 0:00:06]}  Kg7 {[%clk 0:00:18]} 62. a6 {[%clk 0:00:06]}  Kh7 {[%clk 0:00:18]} 63. Rb7+ {[%clk 0:00:06]}  Kg6 {[%clk 0:00:18]} 64. Rb6+ {[%clk 0:00:06]}  Kg7 {[%clk 0:00:18]} 65. Rb5 {[%clk 0:00:06]}  Kg6 {[%clk 0:00:18]} 66. Rb6+ {[%clk 0:00:06]}  Kg7 {[%clk 0:00:19]} 67. g4 {[%clk 0:00:06]}  Ra3+ {[%clk 0:00:19]} 68. Kg2 {[%clk 0:00:06]}  hxg4 {[%clk 0:00:19]} 69. Rb7+ {[%clk 0:00:06]}  Kg6 {[%clk 0:00:19]} 70. a7 {[%clk 0:00:07]}  Kh6 {[%clk 0:00:19]} 71. Rb6+ {[%clk 0:00:06]}  Kh5 {[%clk 0:00:19]} 72. Rb7 {[%clk 0:00:03]}  Kg6 {[%clk 0:00:19]} 73. Rb6+ {[%clk 0:00:03]}  Kf5 {[%clk 0:00:19]} 74. Rb5+ {[%clk 0:00:03]}  Kf4 {[%clk 0:00:18]} 75. Rb4+ {[%clk 0:00:03]}  Kf5 {[%clk 0:00:19]} 76. Rb5+ {[%clk 0:00:03]}  Kg6 {[%clk 0:00:19]} 77. Rb6+ {[%clk 0:00:04]}  Kh5 {[%clk 0:00:19]} 78. Rb5+ {[%clk 0:00:04]}  Kxh4 {[%clk 0:00:19]} 79. Rb7 {[%clk 0:00:04]}  Ra2+ {[%clk 0:00:19]} 80. Kg1 {[%clk 0:00:05]}  Kh3 {[%clk 0:00:19]} 81. Rh7+ {[%clk 0:00:04]}  Kg3 {[%clk 0:00:19]} 82. Rf7 {[%clk 0:00:04]}  Ra1+ {[%clk 0:00:19]} 83. Rf1 {[%clk 0:00:03]}  Rxa7 {[%clk 0:00:20]} 84. Rb1 {[%clk 0:00:03]}  Rf7 {[%clk 0:00:20]} 85. Re1 {[%clk 0:00:03]}  Kh3 {[%clk 0:00:20]} 86. Rd1 {[%clk 0:00:03]}  g3 {[%clk 0:00:20]} 87. Rc1 {[%clk 0:00:03]}  Rf2 {[%clk 0:00:20]} 88. Rd1 {[%clk 0:00:03]}  Re2 {[%clk 0:00:20]} 89. Rc1 {[%clk 0:00:04]}  Kg4 {[%clk 0:00:20]} 90. Rc4+ {[%clk 0:00:04]}  Kf3 {[%clk 0:00:20]} 91. Rc1 {[%clk 0:00:05]}  Rd2 {[%clk 0:00:20]} 92. Rf1+ {[%clk 0:00:04]}  Kg4 {[%clk 0:00:18]} 93. Rc1 {[%clk 0:00:05]}  g2 {[%clk 0:00:17]} 94. Rc4+ {[%clk 0:00:05]}  Kf3 {[%clk 0:00:17]} 95. Rc3+ {[%clk 0:00:05]}  Ke2 {[%clk 0:00:17]} 96. Kxg2 {[%clk 0:00:04]}  Rd3 {[%clk 0:00:18]} 97. Rxd3 {[%clk 0:00:03]}  Kxd3 {[%clk 0:00:18]} 1/2-1/2


[Site "https://www.chess.com"]

[Event "Titled Tuesday Blitz October 26 2021"]
[White "Laurent-Paoli, Pierre"]
[Black "Jones, Gawain C B"]
[WhiteFideId "26017962"]
[BlackFideId "409561"]
[WhiteElo "2390"]
[BlackElo "2657"]
[Result "0-1"]
[Round "02"]
[TimeControl "180+1"]
[Date "2021.10.26"]
[WhiteClock "0:00:22"]
[BlackClock "0:00:44"]

1. d4 {[%clk 0:03:00]}  Nf6 {[%clk 0:02:59]} 2. c4 {[%clk 0:03:00]}  g6 {[%clk 0:02:59]} 3. Nc3 {[%clk 0:03:00]}  Bg7 {[%clk 0:02:59]} 4. e4 {[%clk 0:03:00]}  d6 {[%clk 0:02:59]} 5. Nf3 {[%clk 0:03:01]}  O-O {[%clk 0:03:00]} 6. Be2 {[%clk 0:03:01]}  e5 {[%clk 0:03:00]} 7. O-O {[%clk 0:03:02]}  Nbd7 {[%clk 0:03:00]} 8. Be3 {[%clk 0:03:01]}  Qe7 {[%clk 0:03:00]} 9. Qc2 {[%clk 0:03:00]}  c6 {[%clk 0:02:58]} 10. Rad1 {[%clk 0:02:59]}  h6 {[%clk 0:02:58]} 11. Rfe1 {[%clk 0:02:23]}  Ng4 {[%clk 0:02:57]} 12. Bc1 {[%clk 0:02:23]}  exd4 {[%clk 0:02:57]} 13. Nxd4 {[%clk 0:02:24]}  Nxf2 {[%clk 0:02:57]} 14. Kxf2 {[%clk 0:02:16]}  Qh4+ {[%clk 0:02:56]} 15. Ke3 {[%clk 0:02:08]}  Bxd4+ {[%clk 0:02:38]} 16. Kxd4 {[%clk 0:01:33]}  Qf2+ {[%clk 0:02:37]} 17. Be3 {[%clk 0:01:21]}  c5+ {[%clk 0:02:36]} 18. Kd3 {[%clk 0:01:16]}  Ne5+ {[%clk 0:02:36]} 19. Kd2 {[%clk 0:01:17]}  Nxc4+ {[%clk 0:02:36]} 20. Kc1 {[%clk 0:01:17]}  Nxe3 {[%clk 0:02:35]} 21. Qd2 {[%clk 0:01:13]}  Nxd1 {[%clk 0:02:33]} 22. Rxd1 {[%clk 0:01:14]}  Qh4 {[%clk 0:02:00]} 23. Bc4 {[%clk 0:01:08]}  Be6 {[%clk 0:01:52]} 24. Bxe6 {[%clk 0:00:54]}  fxe6 {[%clk 0:01:52]} 25. Qxd6 {[%clk 0:00:53]}  Qf4+ {[%clk 0:01:52]} 26. Kb1 {[%clk 0:00:51]}  Qxd6 {[%clk 0:01:51]} 27. Rxd6 {[%clk 0:00:52]}  Rad8 {[%clk 0:01:45]} 28. Rxe6 {[%clk 0:00:48]}  Rd2 {[%clk 0:01:44]} 29. a3 {[%clk 0:00:47]}  Rxg2 {[%clk 0:01:38]} 30. Nd5 {[%clk 0:00:45]}  Rff2 {[%clk 0:01:33]} 31. Re8+ {[%clk 0:00:45]}  Kg7 {[%clk 0:01:28]} 32. Re7+ {[%clk 0:00:43]}  Rf7 {[%clk 0:01:28]} 33. Re8 {[%clk 0:00:40]}  b5 {[%clk 0:01:23]} 34. e5 {[%clk 0:00:35]}  Rff2 {[%clk 0:01:17]} 35. e6 {[%clk 0:00:22]}  Rxb2+ {[%clk 0:01:16]} 36. Kc1 {[%clk 0:00:22]}  Rgc2+ {[%clk 0:01:15]} 37. Kd1 {[%clk 0:00:22]}  Rd2+ {[%clk 0:00:55]} 38. Kc1 {[%clk 0:00:21]}  Rxd5 {[%clk 0:00:54]} 39. Kxb2 {[%clk 0:00:21]}  Rd2+ {[%clk 0:00:52]} 40. Kc3 {[%clk 0:00:20]}  Rxh2 {[%clk 0:00:52]} 41. Ra8 {[%clk 0:00:20]}  Kf6 {[%clk 0:00:50]} 42. Rxa7 {[%clk 0:00:20]}  Kxe6 {[%clk 0:00:49]} 43. Ra6+ {[%clk 0:00:20]}  Kf5 {[%clk 0:00:49]} 44. Rc6 {[%clk 0:00:20]}  b4+ {[%clk 0:00:49]} 45. axb4 {[%clk 0:00:19]}  cxb4+ {[%clk 0:00:50]} 46. Kxb4 {[%clk 0:00:20]}  Re2 {[%clk 0:00:49]} 47. Kc3 {[%clk 0:00:20]}  h5 {[%clk 0:00:49]} 48. Kd3 {[%clk 0:00:20]}  Re8 {[%clk 0:00:49]} 49. Rc5+ {[%clk 0:00:21]}  Kg4 {[%clk 0:00:49]} 50. Rc6 {[%clk 0:00:20]}  g5 {[%clk 0:00:49]} 51. Rc1 {[%clk 0:00:20]}  h4 {[%clk 0:00:45]} 52. Rg1+ {[%clk 0:00:21]}  Kh5 {[%clk 0:00:46]} 53. Re1 {[%clk 0:00:22]}  Rxe1 {[%clk 0:00:44]} 0-1


[Site "https://www.chess.com"]

[Event "Titled Tuesday Blitz October 26 2021"]
[White "Mamedyarov, Shakhriyar"]
[Black "Tologon tegin, Semetei"]
[WhiteFideId "13401319"]
[BlackFideId "13800574"]
[WhiteElo "2754"]
[BlackElo "2224"]
[Result "1-0"]
[Round "02"]
[TimeControl "180+1"]
[Date "2021.10.26"]
[WhiteClock "0:01:54"]
[BlackClock "0:00:05"]

1. c4 {[%clk 0:03:00]}  c5 {[%clk 0:02:56]} 2. g3 {[%clk 0:02:59]}  g6 {[%clk 0:02:56]} 3. Bg2 {[%clk 0:02:59]}  Bg7 {[%clk 0:02:57]} 4. Nc3 {[%clk 0:02:58]}  Nc6 {[%clk 0:02:57]} 5. e3 {[%clk 0:02:57]}  e6 {[%clk 0:02:55]} 6. Nge2 {[%clk 0:02:57]}  Nge7 {[%clk 0:02:55]} 7. d4 {[%clk 0:02:58]}  cxd4 {[%clk 0:02:54]} 8. exd4 {[%clk 0:02:59]}  d5 {[%clk 0:02:54]} 9. cxd5 {[%clk 0:02:57]}  exd5 {[%clk 0:02:55]} 10. O-O {[%clk 0:02:56]}  O-O {[%clk 0:02:55]} 11. Be3 {[%clk 0:02:55]}  Be6 {[%clk 0:02:12]} 12. Nf4 {[%clk 0:02:51]}  Qb6 {[%clk 0:02:06]} 13. Na4 {[%clk 0:02:44]}  Qb5 {[%clk 0:01:59]} 14. Nxe6 {[%clk 0:02:29]}  fxe6 {[%clk 0:01:59]} 15. Nc5 {[%clk 0:02:29]}  e5 {[%clk 0:01:48]} 16. Ne6 {[%clk 0:02:27]}  exd4 {[%clk 0:01:41]} 17. Bg5 {[%clk 0:02:18]}  Rfc8 {[%clk 0:00:26]} 18. Re1 {[%clk 0:02:09]}  Nf5 {[%clk 0:00:20]} 19. a4 {[%clk 0:02:09]}  Qa5 {[%clk 0:00:19]} 20. Bh3 {[%clk 0:02:03]}  h6 {[%clk 0:00:15]} 21. Nxg7 {[%clk 0:01:58]}  Kxg7 {[%clk 0:00:13]} 22. Bxf5 {[%clk 0:01:58]}  gxf5 {[%clk 0:00:14]} 23. Bxh6+ {[%clk 0:01:59]}  Kxh6 {[%clk 0:00:14]} 24. Re6+ {[%clk 0:01:59]}  Kg7 {[%clk 0:00:12]} 25. Qh5 {[%clk 0:02:00]}  Rc7 {[%clk 0:00:06]} 26. Rg6+ {[%clk 0:01:55]}  Kf8 {[%clk 0:00:06]} 27. Qh8+ {[%clk 0:01:54]}  Ke7 {[%clk 0:00:06]} 28. Qh7+ {[%clk 0:01:54]}  Kd8 {[%clk 0:00:05]} 29. Rg8# {[%clk 0:01:54]} 1-0


[Site "https://www.chess.com"]

[Event "Titled Tuesday Blitz October 26 2021"]
[White "Martic, Ivan"]
[Black "Bacrot, Etienne"]
[WhiteFideId "929301"]
[BlackFideId "605506"]
[WhiteElo "2290"]
[BlackElo "2673"]
[Result "1/2-1/2"]
[Round "02"]
[TimeControl "180+1"]
[Date "2021.10.26"]
[WhiteClock "0:00:07"]
[BlackClock "0:00:07"]

1. e4 {[%clk 0:02:59]}  c5 {[%clk 0:02:59]} 2. Nf3 {[%clk 0:02:59]}  d6 {[%clk 0:02:59]} 3. d4 {[%clk 0:03:00]}  cxd4 {[%clk 0:02:59]} 4. Nxd4 {[%clk 0:03:01]}  Nf6 {[%clk 0:02:59]} 5. f3 {[%clk 0:03:01]}  Nc6 {[%clk 0:02:58]} 6. c4 {[%clk 0:03:01]}  g6 {[%clk 0:02:57]} 7. Nc3 {[%clk 0:03:01]}  Bg7 {[%clk 0:02:57]} 8. Be3 {[%clk 0:03:01]}  O-O {[%clk 0:02:57]} 9. Be2 {[%clk 0:03:01]}  Be6 {[%clk 0:02:57]} 10. Nxe6 {[%clk 0:02:59]}  fxe6 {[%clk 0:02:57]} 11. O-O {[%clk 0:02:59]}  Rc8 {[%clk 0:02:56]} 12. Qd2 {[%clk 0:02:57]}  a6 {[%clk 0:02:55]} 13. Kh1 {[%clk 0:02:56]}  Qa5 {[%clk 0:02:53]} 14. f4 {[%clk 0:02:52]}  Kh8 {[%clk 0:02:40]} 15. a3 {[%clk 0:02:51]}  Qd8 {[%clk 0:02:34]} 16. Rac1 {[%clk 0:02:48]}  Na5 {[%clk 0:02:31]} 17. e5 {[%clk 0:02:31]}  Nd7 {[%clk 0:01:59]} 18. Rcd1 {[%clk 0:02:08]}  Nxc4 {[%clk 0:01:58]} 19. Bxc4 {[%clk 0:02:09]}  Rxc4 {[%clk 0:01:57]} 20. exd6 {[%clk 0:02:06]}  Nf6 {[%clk 0:01:51]} 21. dxe7 {[%clk 0:02:02]}  Qxe7 {[%clk 0:01:51]} 22. Qe2 {[%clk 0:01:59]}  Rcc8 {[%clk 0:01:42]} 23. Bd4 {[%clk 0:01:57]}  Nh5 {[%clk 0:01:34]} 24. Bxg7+ {[%clk 0:01:53]}  Qxg7 {[%clk 0:01:35]} 25. Qxe6 {[%clk 0:01:51]}  Rce8 {[%clk 0:01:30]} 26. Qc4 {[%clk 0:01:46]}  Qh6 {[%clk 0:01:24]} 27. Qd4+ {[%clk 0:01:44]}  Kg8 {[%clk 0:01:23]} 28. Kg1 {[%clk 0:01:25]}  Nxf4 {[%clk 0:01:21]} 29. Rf2 {[%clk 0:01:17]}  Qg5 {[%clk 0:01:19]} 30. Kh1 {[%clk 0:01:11]}  Nh5 {[%clk 0:00:52]} 31. Rdf1 {[%clk 0:01:08]}  Rxf2 {[%clk 0:00:51]} 32. Qxf2 {[%clk 0:01:08]}  Qe7 {[%clk 0:00:48]} 33. Nd5 {[%clk 0:01:06]}  Qd7 {[%clk 0:00:46]} 34. Qd4 {[%clk 0:00:57]}  Rd8 {[%clk 0:00:44]} 35. Rd1 {[%clk 0:00:56]}  Rf8 {[%clk 0:00:39]} 36. g4 {[%clk 0:00:52]}  Qb5 {[%clk 0:00:16]} 37. Ne7+ {[%clk 0:00:41]}  Kf7 {[%clk 0:00:16]} 38. gxh5 {[%clk 0:00:38]}  Kxe7 {[%clk 0:00:14]} 39. Qd6+ {[%clk 0:00:17]}  Kf7 {[%clk 0:00:13]} 40. hxg6+ {[%clk 0:00:18]}  hxg6 {[%clk 0:00:13]} 41. Kg2 {[%clk 0:00:16]}  Kg7 {[%clk 0:00:12]} 42. Qd4+ {[%clk 0:00:13]}  Rf6 {[%clk 0:00:11]} 43. Qd7+ {[%clk 0:00:12]}  Rf7 {[%clk 0:00:11]} 44. Qxb5 {[%clk 0:00:11]}  axb5 {[%clk 0:00:10]} 45. Rd5 {[%clk 0:00:12]}  Rc7 {[%clk 0:00:06]} 46. Rxb5 {[%clk 0:00:11]}  Kf6 {[%clk 0:00:07]} 47. Rb6+ {[%clk 0:00:11]}  Kf5 {[%clk 0:00:06]} 48. Kg3 {[%clk 0:00:11]}  g5 {[%clk 0:00:06]} 49. h3 {[%clk 0:00:12]}  Rd7 {[%clk 0:00:06]} 50. Rb5+ {[%clk 0:00:11]}  Kf6 {[%clk 0:00:06]} 51. Rb6+ {[%clk 0:00:11]}  Kf5 {[%clk 0:00:05]} 52. a4 {[%clk 0:00:11]}  Rd3+ {[%clk 0:00:05]} 53. Kg2 {[%clk 0:00:09]}  Rd7 {[%clk 0:00:05]} 54. Rb5+ {[%clk 0:00:08]}  Kf4 {[%clk 0:00:05]} 55. Rb4+ {[%clk 0:00:08]}  Kf5 {[%clk 0:00:05]} 56. Kg3 {[%clk 0:00:07]}  Rd3+ {[%clk 0:00:05]} 57. Kg2 {[%clk 0:00:07]}  Rd2+ {[%clk 0:00:06]} 58. Kf3 {[%clk 0:00:07]}  Rd3+ {[%clk 0:00:07]} 59. Kg2 {[%clk 0:00:07]}  Rd7 {[%clk 0:00:07]} 60. Rb5+ {[%clk 0:00:06]}  Kf4 {[%clk 0:00:07]} 61. Rb4+ {[%clk 0:00:07]}  Kf5 {[%clk 0:00:07]} 1/2-1/2


[Site "https://www.chess.com"]

[Event "Titled Tuesday Blitz October 26 2021"]
[White "Martinez Alcantara, Jose Eduardo"]
[Black "Materia, Marco"]
[WhiteFideId "3805662"]
[BlackFideId "45150451"]
[WhiteElo "2690"]
[BlackElo "2597"]
[Result "1/2-1/2"]
[Round "02"]
[TimeControl "180+1"]
[Date "2021.10.26"]
[WhiteClock "0:00:17"]
[BlackClock "0:00:20"]

1. e4 {[%clk 0:03:00]}  c5 {[%clk 0:02:59]} 2. Nf3 {[%clk 0:03:01]}  e6 {[%clk 0:02:59]} 3. d4 {[%clk 0:03:01]}  cxd4 {[%clk 0:02:58]} 4. Nxd4 {[%clk 0:03:02]}  Nc6 {[%clk 0:02:59]} 5. Nc3 {[%clk 0:03:02]}  Qc7 {[%clk 0:02:59]} 6. Be3 {[%clk 0:03:02]}  a6 {[%clk 0:02:59]} 7. g4 {[%clk 0:03:02]}  b5 {[%clk 0:02:55]} 8. Nxc6 {[%clk 0:03:01]}  Qxc6 {[%clk 0:02:55]} 9. Qd2 {[%clk 0:03:02]}  b4 {[%clk 0:02:55]} 10. Ne2 {[%clk 0:03:02]}  Qxe4 {[%clk 0:02:55]} 11. Rg1 {[%clk 0:03:03]}  Qc4 {[%clk 0:02:55]} 12. Nf4 {[%clk 0:03:02]}  Qc7 {[%clk 0:02:55]} 13. O-O-O {[%clk 0:03:03]}  Nf6 {[%clk 0:02:48]} 14. Nh5 {[%clk 0:02:46]}  Nd5 {[%clk 0:02:32]} 15. Bd4 {[%clk 0:02:42]}  Rg8 {[%clk 0:02:29]} 16. Bg2 {[%clk 0:02:41]}  Bb7 {[%clk 0:02:28]} 17. Rge1 {[%clk 0:02:32]}  O-O-O {[%clk 0:02:14]} 18. Be4 {[%clk 0:02:20]}  h6 {[%clk 0:02:06]} 19. Bh7 {[%clk 0:02:13]}  Rh8 {[%clk 0:02:06]} 20. Be4 {[%clk 0:02:13]}  Rg8 {[%clk 0:02:05]} 21. Kb1 {[%clk 0:02:10]}  Kb8 {[%clk 0:01:57]} 22. Bh7 {[%clk 0:01:59]}  Rh8 {[%clk 0:01:56]} 23. Be4 {[%clk 0:01:59]}  Rg8 {[%clk 0:01:47]} 24. f4 {[%clk 0:01:53]}  Rc8 {[%clk 0:01:20]} 25. f5 {[%clk 0:01:42]}  Ka8 {[%clk 0:01:04]} 26. Ka1 {[%clk 0:01:28]}  g6 {[%clk 0:01:01]} 27. fxg6 {[%clk 0:01:19]}  fxg6 {[%clk 0:01:01]} 28. Bxd5 {[%clk 0:01:19]}  gxh5 {[%clk 0:01:00]} 29. Bxb7+ {[%clk 0:01:19]}  Qxb7 {[%clk 0:01:00]} 30. gxh5 {[%clk 0:01:19]}  Rg5 {[%clk 0:00:58]} 31. Be3 {[%clk 0:01:07]}  Rd5 {[%clk 0:00:56]} 32. Qe2 {[%clk 0:01:06]}  Rxd1+ {[%clk 0:00:48]} 33. Rxd1 {[%clk 0:01:07]}  d5 {[%clk 0:00:43]} 34. Bd4 {[%clk 0:01:01]}  Qc6 {[%clk 0:00:43]} 35. Kb1 {[%clk 0:01:01]}  Kb7 {[%clk 0:00:39]} 36. Rc1 {[%clk 0:00:55]}  a5 {[%clk 0:00:34]} 37. c3 {[%clk 0:00:54]}  bxc3 {[%clk 0:00:33]} 38. Rxc3 {[%clk 0:00:51]}  Qd7 {[%clk 0:00:28]} 39. Rb3+ {[%clk 0:00:45]}  Kc7 {[%clk 0:00:26]} 40. Qa6 {[%clk 0:00:32]}  Kd8 {[%clk 0:00:24]} 41. Qxa5+ {[%clk 0:00:26]}  Ke8 {[%clk 0:00:24]} 42. Qe1 {[%clk 0:00:23]}  Qh7+ {[%clk 0:00:22]} 43. Ka1 {[%clk 0:00:23]}  Qe4 {[%clk 0:00:22]} 44. Qxe4 {[%clk 0:00:21]}  dxe4 {[%clk 0:00:23]} 45. Rc3 {[%clk 0:00:18]}  Rd8 {[%clk 0:00:23]} 46. Be3 {[%clk 0:00:18]}  Bg7 {[%clk 0:00:21]} 47. Rc1 {[%clk 0:00:16]}  Rd3 {[%clk 0:00:21]} 48. Re1 {[%clk 0:00:16]}  Kd7 {[%clk 0:00:19]} 49. Kb1 {[%clk 0:00:16]}  Kc6 {[%clk 0:00:19]} 50. Kc2 {[%clk 0:00:16]}  Rd8 {[%clk 0:00:17]} 51. Bd2 {[%clk 0:00:15]}  Kd5 {[%clk 0:00:13]} 52. a4 {[%clk 0:00:13]}  Rc8+ {[%clk 0:00:14]} 53. Bc3 {[%clk 0:00:13]}  Bxc3 {[%clk 0:00:14]} 54. bxc3 {[%clk 0:00:13]}  Ra8 {[%clk 0:00:14]} 55. Rd1+ {[%clk 0:00:12]}  Ke5 {[%clk 0:00:14]} 56. Kb3 {[%clk 0:00:13]}  e3 {[%clk 0:00:14]} 57. Kc4 {[%clk 0:00:10]}  Rxa4+ {[%clk 0:00:13]} 58. Kd3 {[%clk 0:00:11]}  Ra2 {[%clk 0:00:13]} 59. Re1 {[%clk 0:00:07]}  Rxh2 {[%clk 0:00:13]} 60. Rxe3+ {[%clk 0:00:08]}  Kd6 {[%clk 0:00:12]} 61. Ke4 {[%clk 0:00:07]}  Rxh5 {[%clk 0:00:12]} 62. Kf4 {[%clk 0:00:07]}  Rc5 {[%clk 0:00:12]} 63. Kg4 {[%clk 0:00:07]}  Kd5 {[%clk 0:00:12]} 64. Kh5 {[%clk 0:00:07]}  Kc4+ {[%clk 0:00:13]} 65. Kxh6 {[%clk 0:00:07]}  e5 {[%clk 0:00:13]} 66. Kg5 {[%clk 0:00:08]}  Kb3 {[%clk 0:00:14]} 67. Kf5 {[%clk 0:00:07]}  Rxc3 {[%clk 0:00:14]} 68. Rxe5 {[%clk 0:00:08]}  Rc4 {[%clk 0:00:14]} 69. Re8 {[%clk 0:00:08]}  Rc3 {[%clk 0:00:14]} 70. Ke4 {[%clk 0:00:09]}  Rc4+ {[%clk 0:00:15]} 71. Kd3 {[%clk 0:00:09]}  Rc3+ {[%clk 0:00:16]} 72. Kd2 {[%clk 0:00:10]}  Rc2+ {[%clk 0:00:16]} 73. Kd1 {[%clk 0:00:11]}  Rc4 {[%clk 0:00:17]} 74. Re5 {[%clk 0:00:10]}  Kb4 {[%clk 0:00:17]} 75. Kd2 {[%clk 0:00:10]}  Kb3 {[%clk 0:00:17]} 76. Rb5+ {[%clk 0:00:10]}  Rb4 {[%clk 0:00:17]} 77. Rc5 {[%clk 0:00:10]}  Rc4 {[%clk 0:00:18]} 78. Rb5+ {[%clk 0:00:11]}  Rb4 {[%clk 0:00:18]} 79. Rd5 {[%clk 0:00:12]}  Kc4 {[%clk 0:00:18]} 80. Rd8 {[%clk 0:00:12]}  Kc5 {[%clk 0:00:18]} 81. Kd3 {[%clk 0:00:12]}  Kc6 {[%clk 0:00:19]} 82. Kc3 {[%clk 0:00:12]}  Rh4 {[%clk 0:00:18]} 83. Rd3 {[%clk 0:00:12]}  Kc7 {[%clk 0:00:18]} 84. Rg3 {[%clk 0:00:12]}  Kc6 {[%clk 0:00:18]} 85. Rg6+ {[%clk 0:00:12]}  Kc7 {[%clk 0:00:18]} 86. Kd3 {[%clk 0:00:13]}  Kd7 {[%clk 0:00:19]} 87. Ke3 {[%clk 0:00:14]}  Kc7 {[%clk 0:00:19]} 88. Ra6 {[%clk 0:00:14]}  Kd7 {[%clk 0:00:19]} 89. Kf3 {[%clk 0:00:13]}  Kc7 {[%clk 0:00:20]} 90. Ra7+ {[%clk 0:00:14]}  Kb6 {[%clk 0:00:20]} 91. Rg7 {[%clk 0:00:15]}  Rb4 {[%clk 0:00:19]} 92. Rg6+ {[%clk 0:00:15]}  Ka5 {[%clk 0:00:20]} 93. Ke3 {[%clk 0:00:16]}  Ka4 {[%clk 0:00:20]} 94. Kd3 {[%clk 0:00:17]}  Ka5 {[%clk 0:00:20]} 95. Kc3 {[%clk 0:00:17]}  Rh4 {[%clk 0:00:21]} 96. Rg8 {[%clk 0:00:15]}  Kb6 {[%clk 0:00:21]} 97. Rc8 {[%clk 0:00:16]}  Kb7 {[%clk 0:00:21]} 98. Rc4 {[%clk 0:00:16]}  Rxc4+ {[%clk 0:00:20]} 99. Kxc4 {[%clk 0:00:17]} 1/2-1/2


[Site "https://www.chess.com"]

[Event "Titled Tuesday Blitz October 26 2021"]
[White "Milchev, Nikolay"]
[Black "Pultinevicius, Paulius"]
[WhiteFideId "2906090"]
[BlackFideId "12809390"]
[WhiteElo "2449"]
[BlackElo "2467"]
[Result "1-0"]
[Round "02"]
[TimeControl "180+1"]
[Date "2021.10.26"]
[WhiteClock "0:01:10"]
[BlackClock "0:00:01"]

1. Nf3 {[%clk 0:03:00]}  Nf6 {[%clk 0:02:54]} 2. c4 {[%clk 0:03:01]}  e6 {[%clk 0:02:51]} 3. g3 {[%clk 0:03:00]}  d5 {[%clk 0:02:50]} 4. Bg2 {[%clk 0:03:01]}  dxc4 {[%clk 0:02:46]} 5. Qa4+ {[%clk 0:03:00]}  Nbd7 {[%clk 0:02:46]} 6. Qxc4 {[%clk 0:03:01]}  a6 {[%clk 0:02:45]} 7. Qb3 {[%clk 0:03:00]}  c5 {[%clk 0:02:44]} 8. a4 {[%clk 0:02:59]}  Qc7 {[%clk 0:02:38]} 9. d3 {[%clk 0:02:58]}  b6 {[%clk 0:02:38]} 10. Bf4 {[%clk 0:02:55]}  Bd6 {[%clk 0:02:33]} 11. Bxd6 {[%clk 0:02:51]}  Qxd6 {[%clk 0:02:34]} 12. Nbd2 {[%clk 0:02:50]}  Bb7 {[%clk 0:02:32]} 13. Nc4 {[%clk 0:02:49]}  Qc7 {[%clk 0:02:31]} 14. O-O {[%clk 0:02:49]}  O-O {[%clk 0:02:31]} 15. Rfc1 {[%clk 0:02:48]}  Rab8 {[%clk 0:02:26]} 16. e4 {[%clk 0:02:45]}  Rfd8 {[%clk 0:02:12]} 17. h3 {[%clk 0:02:43]}  Bc6 {[%clk 0:01:57]} 18. Qc3 {[%clk 0:02:32]}  h6 {[%clk 0:01:42]} 19. Nfe5 {[%clk 0:01:54]}  Nxe5 {[%clk 0:01:37]} 20. Nxe5 {[%clk 0:01:54]}  a5 {[%clk 0:01:05]} 21. Nxc6 {[%clk 0:01:52]}  Qxc6 {[%clk 0:01:05]} 22. d4 {[%clk 0:01:52]}  Nxe4 {[%clk 0:00:28]} 23. Qe3 {[%clk 0:01:51]}  f5 {[%clk 0:00:26]} 24. dxc5 {[%clk 0:01:51]}  bxc5 {[%clk 0:00:26]} 25. Bxe4 {[%clk 0:01:51]}  Qxe4 {[%clk 0:00:26]} 26. Qxe4 {[%clk 0:01:50]}  fxe4 {[%clk 0:00:27]} 27. Rxc5 {[%clk 0:01:47]}  Rxb2 {[%clk 0:00:28]} 28. Re5 {[%clk 0:01:46]}  Rdd2 {[%clk 0:00:26]} 29. Rf1 {[%clk 0:01:46]}  Rd4 {[%clk 0:00:25]} 30. Rxe6 {[%clk 0:01:45]}  Rxa4 {[%clk 0:00:25]} 31. Re5 {[%clk 0:01:33]}  Kh7 {[%clk 0:00:22]} 32. Re1 {[%clk 0:01:32]}  Raa2 {[%clk 0:00:22]} 33. Rf5 {[%clk 0:01:32]}  Rb4 {[%clk 0:00:15]} 34. Re5 {[%clk 0:01:30]}  Raa4 {[%clk 0:00:14]} 35. Rc1 {[%clk 0:01:25]}  Rd4 {[%clk 0:00:09]} 36. Rc7 {[%clk 0:01:23]}  Rd1+ {[%clk 0:00:05]} 37. Kg2 {[%clk 0:01:19]}  Rd6 {[%clk 0:00:04]} 38. h4 {[%clk 0:01:13]}  Rf6 {[%clk 0:00:01]} 39. h5 {[%clk 0:01:10]} 1-0


[Site "https://www.chess.com"]